[Event "Titled Tuesday Blitz June 13 Early 2023"]
[White "Chos, Alexey"]
[Black "Starozhilov, Leonid"]
[WhiteFideId "14117762"]
[BlackFideId "14106752"]
[WhiteElo "2234"]
[BlackElo "2352"]
[Result "1-0"]
[Round "4"]
[TimeControl "180+2"]
[Date "2023.06.13"]
[WhiteClock "0:00:54"]
[BlackClock "0:00:01"]
[Board "64"]

1. b3 {[%clk 0:02:56]}  d5 {[%clk 0:02:59]} 2. Bb2 {[%clk 0:02:55]}  Bg4 {[%clk 0:02:58]} 3. g3 {[%clk 0:02:56]}  e6 {[%clk 0:02:58]} 4. Bg2 {[%clk 0:02:56]}  Nf6 {[%clk 0:02:58]} 5. h3 {[%clk 0:02:55]}  Bh5 {[%clk 0:02:56]} 6. Nf3 {[%clk 0:02:55]}  a5 {[%clk 0:02:54]} 7. O-O {[%clk 0:02:51]}  Nbd7 {[%clk 0:02:53]} 8. c4 {[%clk 0:02:50]}  c6 {[%clk 0:02:53]} 9. d3 {[%clk 0:02:48]}  Bc5 {[%clk 0:02:40]} 10. Nbd2 {[%clk 0:02:45]}  Qc7 {[%clk 0:02:34]} 11. Rc1 {[%clk 0:02:40]}  Qb6 {[%clk 0:02:13]} 12. a3 {[%clk 0:02:36]}  O-O {[%clk 0:02:09]} 13. Rb1 {[%clk 0:02:30]}  Rfe8 {[%clk 0:01:58]} 14. d4 {[%clk 0:02:23]}  Bf8 {[%clk 0:01:43]} 15. Ne5 {[%clk 0:02:21]}  Nxe5 {[%clk 0:01:37]} 16. dxe5 {[%clk 0:02:22]}  Nd7 {[%clk 0:01:37]} 17. g4 {[%clk 0:02:16]}  Bg6 {[%clk 0:01:35]} 18. e4 {[%clk 0:02:11]}  dxe4 {[%clk 0:01:23]} 19. Nxe4 {[%clk 0:02:10]}  Nc5 {[%clk 0:01:21]} 20. Nd6 {[%clk 0:01:55]}  Bxb1 {[%clk 0:01:15]} 21. Qxb1 {[%clk 0:01:46]}  Red8 {[%clk 0:01:08]} 22. Bd4 {[%clk 0:01:42]}  Bxd6 {[%clk 0:00:42]} 23. exd6 {[%clk 0:01:39]}  Rxd6 {[%clk 0:00:43]} 24. Be3 {[%clk 0:01:39]}  Qxb3 {[%clk 0:00:25]} 25. Bxc5 {[%clk 0:01:37]}  Qxb1 {[%clk 0:00:23]} 26. Rxb1 {[%clk 0:01:38]}  Rd7 {[%clk 0:00:24]} 27. Be3 {[%clk 0:01:36]}  Rad8 {[%clk 0:00:21]} 28. Kh2 {[%clk 0:01:35]}  f6 {[%clk 0:00:18]} 29. c5 {[%clk 0:01:30]}  Kf7 {[%clk 0:00:13]} 30. Bf3 {[%clk 0:01:30]}  g6 {[%clk 0:00:12]} 31. Be2 {[%clk 0:01:30]}  e5 {[%clk 0:00:11]} 32. Bc4+ {[%clk 0:01:29]}  Kg7 {[%clk 0:00:12]} 33. h4 {[%clk 0:01:26]}  h6 {[%clk 0:00:12]} 34. h5 {[%clk 0:01:23]}  f5 {[%clk 0:00:07]} 35. gxf5 {[%clk 0:01:20]}  gxf5 {[%clk 0:00:07]} 36. Rg1+ {[%clk 0:01:20]}  Kh7 {[%clk 0:00:05]} 37. Be6 {[%clk 0:01:19]}  Rg7 {[%clk 0:00:05]} 38. Bxf5+ {[%clk 0:01:19]}  Kh8 {[%clk 0:00:05]} 39. Bg6 {[%clk 0:01:19]}  Rd5 {[%clk 0:00:02]} 40. Bxh6 {[%clk 0:01:18]}  Rg8 {[%clk 0:00:02]} 41. Be3 {[%clk 0:01:18]}  Rf8 {[%clk 0:00:02]} 42. Be4 {[%clk 0:01:17]}  Rd7 {[%clk 0:00:02]} 43. h6 {[%clk 0:01:17]}  Rdf7 {[%clk 0:00:01]} 44. h7 {[%clk 0:01:15]}  Rf6 {[%clk 0:00:01]} 45. Rg5 {[%clk 0:01:08]}  R6f7 {[%clk 0:00:01]} 46. Rxe5 {[%clk 0:01:07]}  Rg7 {[%clk 0:00:01]} 47. Bd4 {[%clk 0:01:06]}  Rxh7+ {[%clk 0:00:01]} 48. Rh5+ {[%clk 0:00:54]}  Kg8 {[%clk 0:00:01]} 1-0


[Site "https://www.chess.com"]

[Event "Titled Tuesday Blitz June 13 Early 2023"]
[White "Fieberg, Samuel"]
[Black "Danielyan, Vahe"]
[WhiteFideId "12901717"]
[BlackFideId "13304828"]
[WhiteElo "2549"]
[BlackElo "2423"]
[Result "1/2-1/2"]
[Round "4"]
[TimeControl "180+2"]
[Date "2023.06.13"]
[WhiteClock "0:00:08"]
[BlackClock "0:00:13"]
[Board "65"]

1. e4 {[%clk 0:03:00]}  c5 {[%clk 0:02:58]} 2. Nf3 {[%clk 0:03:01]}  e6 {[%clk 0:02:59]} 3. g3 {[%clk 0:03:01]}  Qc7 {[%clk 0:02:58]} 4. Bg2 {[%clk 0:03:00]}  a6 {[%clk 0:02:53]} 5. O-O {[%clk 0:03:00]}  Nc6 {[%clk 0:02:50]} 6. d4 {[%clk 0:03:00]}  cxd4 {[%clk 0:02:50]} 7. Nxd4 {[%clk 0:03:01]}  Nxd4 {[%clk 0:02:49]} 8. Qxd4 {[%clk 0:03:01]}  Nf6 {[%clk 0:02:49]} 9. e5 {[%clk 0:02:58]}  Nd5 {[%clk 0:02:37]} 10. Bxd5 {[%clk 0:02:56]}  exd5 {[%clk 0:02:33]} 11. Nc3 {[%clk 0:02:56]}  Bc5 {[%clk 0:01:54]} 12. Nxd5 {[%clk 0:02:46]}  Qc6 {[%clk 0:01:53]} 13. Qe4 {[%clk 0:02:42]}  b5 {[%clk 0:01:40]} 14. Nc3 {[%clk 0:02:08]}  Bb7 {[%clk 0:01:33]} 15. Qxc6 {[%clk 0:02:08]}  Bxc6 {[%clk 0:01:33]} 16. Bf4 {[%clk 0:02:06]}  O-O {[%clk 0:01:29]} 17. Rad1 {[%clk 0:02:01]}  Rfc8 {[%clk 0:01:21]} 18. Nd5 {[%clk 0:01:59]}  Kf8 {[%clk 0:01:19]} 19. c3 {[%clk 0:01:53]}  a5 {[%clk 0:01:08]} 20. Rd2 {[%clk 0:01:45]}  b4 {[%clk 0:01:04]} 21. c4 {[%clk 0:01:45]}  a4 {[%clk 0:01:01]} 22. Be3 {[%clk 0:01:27]}  Bxd5 {[%clk 0:00:55]} 23. Bxc5+ {[%clk 0:01:26]}  Rxc5 {[%clk 0:00:53]} 24. cxd5 {[%clk 0:01:25]}  Rac8 {[%clk 0:00:50]} 25. Rfd1 {[%clk 0:01:21]}  Ke7 {[%clk 0:00:49]} 26. Rd4 {[%clk 0:01:13]}  Rc4 {[%clk 0:00:46]} 27. b3 {[%clk 0:01:10]}  Rxd4 {[%clk 0:00:41]} 28. Rxd4 {[%clk 0:01:09]}  a3 {[%clk 0:00:41]} 29. Rxb4 {[%clk 0:00:36]}  Rc2 {[%clk 0:00:41]} 30. Ra4 {[%clk 0:00:35]}  Rxa2 {[%clk 0:00:41]} 31. Kg2 {[%clk 0:00:35]}  Rd2 {[%clk 0:00:34]} 32. Rxa3 {[%clk 0:00:30]}  Rxd5 {[%clk 0:00:35]} 33. f4 {[%clk 0:00:30]}  Rd2+ {[%clk 0:00:32]} 34. Kh3 {[%clk 0:00:20]}  Rd3 {[%clk 0:00:30]} 35. Kg4 {[%clk 0:00:19]}  h6 {[%clk 0:00:22]} 36. h4 {[%clk 0:00:18]}  g6 {[%clk 0:00:18]} 37. h5 {[%clk 0:00:12]}  gxh5+ {[%clk 0:00:16]} 38. Kxh5 {[%clk 0:00:13]}  Rxg3 {[%clk 0:00:16]} 39. Kxh6 {[%clk 0:00:13]}  Rg4 {[%clk 0:00:13]} 40. f5 {[%clk 0:00:12]}  Rg3 {[%clk 0:00:13]} 41. Kh5 {[%clk 0:00:12]}  Re3 {[%clk 0:00:12]} 42. e6 {[%clk 0:00:11]}  fxe6 {[%clk 0:00:09]} 43. fxe6 {[%clk 0:00:11]}  Kxe6 {[%clk 0:00:10]} 44. Ra6+ {[%clk 0:00:10]}  d6 {[%clk 0:00:10]} 45. Rb6 {[%clk 0:00:10]}  Ke5 {[%clk 0:00:10]} 46. Kg4 {[%clk 0:00:10]}  d5 {[%clk 0:00:10]} 47. Rb8 {[%clk 0:00:11]}  d4 {[%clk 0:00:10]} 48. Re8+ {[%clk 0:00:10]}  Kd5 {[%clk 0:00:10]} 49. Rxe3 {[%clk 0:00:08]}  dxe3 {[%clk 0:00:11]} 50. Kf3 {[%clk 0:00:09]}  Kd4 {[%clk 0:00:11]} 51. Ke2 {[%clk 0:00:08]}  Kc3 {[%clk 0:00:12]} 52. Kxe3 {[%clk 0:00:08]}  Kb4 {[%clk 0:00:13]} 53. Kd3 {[%clk 0:00:08]}  Kxb3 {[%clk 0:00:13]} 1/2-1/2


[Site "https://www.chess.com"]

[Event "Titled Tuesday Blitz June 13 Early 2023"]
[White "Safin, Robert"]
[Black "Djordjevic, Vuk"]
[WhiteFideId "34189120"]
[BlackFideId "902098"]
[WhiteElo "2341"]
[BlackElo "2463"]
[Result "1-0"]
[Round "4"]
[TimeControl "180+2"]
[Date "2023.06.13"]
[WhiteClock "0:00:51"]
[BlackClock "0:00:01"]
[Board "66"]

1. e4 {[%clk 0:03:00]}  d5 {[%clk 0:03:00]} 2. exd5 {[%clk 0:03:00]}  Qxd5 {[%clk 0:03:01]} 3. Nc3 {[%clk 0:03:00]}  Qd6 {[%clk 0:03:01]} 4. d4 {[%clk 0:02:57]}  Nf6 {[%clk 0:03:01]} 5. Nf3 {[%clk 0:02:58]}  c6 {[%clk 0:03:02]} 6. Ne5 {[%clk 0:02:58]}  Nbd7 {[%clk 0:03:01]} 7. Bf4 {[%clk 0:02:57]}  Nd5 {[%clk 0:03:01]} 8. Nxd5 {[%clk 0:02:51]}  Qxd5 {[%clk 0:02:59]} 9. Nxd7 {[%clk 0:02:22]}  Bxd7 {[%clk 0:02:57]} 10. c3 {[%clk 0:02:22]}  h5 {[%clk 0:01:59]} 11. h4 {[%clk 0:02:04]}  g6 {[%clk 0:01:56]} 12. Qb3 {[%clk 0:01:34]}  Qe4+ {[%clk 0:01:22]} 13. Be3 {[%clk 0:01:33]}  b6 {[%clk 0:01:16]} 14. O-O-O {[%clk 0:01:22]}  Bf5 {[%clk 0:01:10]} 15. Bd3 {[%clk 0:01:21]}  Qxg2 {[%clk 0:01:09]} 16. Bxf5 {[%clk 0:01:19]}  gxf5 {[%clk 0:01:09]} 17. d5 {[%clk 0:01:17]}  Qf3 {[%clk 0:00:20]} 18. Rhg1 {[%clk 0:01:08]}  Qe4 {[%clk 0:00:04]} 19. Rd4 {[%clk 0:01:04]}  Qe5 {[%clk 0:00:02]} 20. dxc6 {[%clk 0:01:02]}  Qc7 {[%clk 0:00:02]} 21. Qb5 {[%clk 0:00:57]}  e6 {[%clk 0:00:02]} 22. Rd7 {[%clk 0:00:56]}  Qc8 {[%clk 0:00:01]} 23. Bd4 {[%clk 0:00:53]}  a6 {[%clk 0:00:01]} 24. Qxf5 {[%clk 0:00:51]}  Qxc6 {[%clk 0:00:01]} 25. Qxf7# {[%clk 0:00:51]} 1-0


[Site "https://www.chess.com"]

[Event "Titled Tuesday Blitz June 13 Early 2023"]
[White "Jaskolka, Tomasz"]
[Black "Turayev, Shahruh"]
[WhiteFideId "1170791"]
[BlackFideId "14003856"]
[WhiteElo "2155"]
[BlackElo "2113"]
[Result "1/2-1/2"]
[Round "4"]
[TimeControl "180+2"]
[Date "2023.06.13"]
[WhiteClock "0:00:10"]
[BlackClock "0:00:11"]
[Board "69"]

1. d4 {[%clk 0:03:00]}  d5 {[%clk 0:02:59]} 2. Nc3 {[%clk 0:03:01]}  e6 {[%clk 0:02:59]} 3. Bf4 {[%clk 0:03:01]}  c6 {[%clk 0:02:55]} 4. e3 {[%clk 0:03:00]}  f5 {[%clk 0:02:55]} 5. Nf3 {[%clk 0:02:59]}  Nf6 {[%clk 0:02:55]} 6. Be2 {[%clk 0:02:55]}  Be7 {[%clk 0:02:55]} 7. Ne5 {[%clk 0:02:47]}  O-O {[%clk 0:02:54]} 8. g4 {[%clk 0:02:38]}  Nbd7 {[%clk 0:02:46]} 9. gxf5 {[%clk 0:02:36]}  exf5 {[%clk 0:02:47]} 10. Rg1 {[%clk 0:02:34]}  Ne4 {[%clk 0:02:46]} 11. Nxe4 {[%clk 0:02:20]}  fxe4 {[%clk 0:02:45]} 12. Bg4 {[%clk 0:02:18]}  Nxe5 {[%clk 0:02:43]} 13. Bxe5 {[%clk 0:02:17]}  Bf6 {[%clk 0:02:43]} 14. Bg3 {[%clk 0:02:11]}  Qb6 {[%clk 0:02:19]} 15. Bxc8 {[%clk 0:01:53]}  Raxc8 {[%clk 0:02:19]} 16. b3 {[%clk 0:01:46]}  c5 {[%clk 0:02:05]} 17. c3 {[%clk 0:01:40]}  Qa5 {[%clk 0:01:58]} 18. Qd2 {[%clk 0:01:28]}  cxd4 {[%clk 0:01:51]} 19. cxd4 {[%clk 0:01:28]}  Rc3 {[%clk 0:01:51]} 20. Kf1 {[%clk 0:00:56]}  Qa6+ {[%clk 0:01:46]} 21. Kg2 {[%clk 0:00:54]}  Rfc8 {[%clk 0:01:46]} 22. Rac1 {[%clk 0:00:50]}  Qc6 {[%clk 0:01:12]} 23. Rxc3 {[%clk 0:00:38]}  Qxc3 {[%clk 0:01:12]} 24. Rd1 {[%clk 0:00:35]}  h5 {[%clk 0:00:46]} 25. Qe2 {[%clk 0:00:30]}  h4 {[%clk 0:00:46]} 26. Bf4 {[%clk 0:00:31]}  Qc6 {[%clk 0:00:35]} 27. Qg4 {[%clk 0:00:28]}  Re8 {[%clk 0:00:35]} 28. Bg5 {[%clk 0:00:20]}  Qc8 {[%clk 0:00:32]} 29. Qxh4 {[%clk 0:00:17]}  Re6 {[%clk 0:00:21]} 30. Bxf6 {[%clk 0:00:17]}  Rxf6 {[%clk 0:00:22]} 31. Qg5 {[%clk 0:00:12]}  Qe6 {[%clk 0:00:21]} 32. Kh1 {[%clk 0:00:11]}  Rxf2 {[%clk 0:00:20]} 33. Rg1 {[%clk 0:00:09]}  Qf7 {[%clk 0:00:21]} 34. Qd8+ {[%clk 0:00:09]}  Kh7 {[%clk 0:00:21]} 35. Qh4+ {[%clk 0:00:09]}  Kg8 {[%clk 0:00:17]} 36. Qd8+ {[%clk 0:00:10]}  Kh7 {[%clk 0:00:11]} 37. Qh4+ {[%clk 0:00:09]}  Kg8 {[%clk 0:00:11]} 38. Qd8+ {[%clk 0:00:10]} 1/2-1/2


[Site "https://www.chess.com"]

[Event "Titled Tuesday Blitz June 13 Early 2023"]
[White "brm72"]
[Black "Martinez Ramirez, Lennis"]
[BlackFideId "3509079"]
[WhiteElo "2536"]
[BlackElo "2410"]
[Result "0-1"]
[Round "4"]
[TimeControl "180+2"]
[Date "2023.06.13"]
[WhiteClock "0:00:04"]
[BlackClock "0:00:13"]
[Board "72"]

1. e4 {[%clk 0:03:00]}  c5 {[%clk 0:02:59]} 2. Nf3 {[%clk 0:03:01]}  Nc6 {[%clk 0:03:00]} 3. Bb5 {[%clk 0:03:00]}  g6 {[%clk 0:02:59]} 4. Bxc6 {[%clk 0:03:00]}  dxc6 {[%clk 0:03:00]} 5. d3 {[%clk 0:02:53]}  Bg7 {[%clk 0:03:01]} 6. h3 {[%clk 0:02:53]}  Nf6 {[%clk 0:02:57]} 7. O-O {[%clk 0:02:46]}  O-O {[%clk 0:02:56]} 8. a4 {[%clk 0:02:44]}  a5 {[%clk 0:02:55]} 9. Nbd2 {[%clk 0:02:39]}  Be6 {[%clk 0:02:23]} 10. Ng5 {[%clk 0:02:26]}  Bd7 {[%clk 0:02:22]} 11. Nc4 {[%clk 0:02:18]}  Ne8 {[%clk 0:02:19]} 12. Be3 {[%clk 0:02:13]}  b6 {[%clk 0:02:16]} 13. f4 {[%clk 0:02:11]}  Nd6 {[%clk 0:02:16]} 14. Ne5 {[%clk 0:01:55]}  Be8 {[%clk 0:02:16]} 15. Rb1 {[%clk 0:01:34]}  Qc8 {[%clk 0:02:03]} 16. Ngf3 {[%clk 0:01:29]}  f6 {[%clk 0:02:02]} 17. Ng4 {[%clk 0:01:27]}  f5 {[%clk 0:01:57]} 18. exf5 {[%clk 0:01:27]}  Nxf5 {[%clk 0:01:57]} 19. Bf2 {[%clk 0:01:26]}  Bf7 {[%clk 0:01:56]} 20. Nge5 {[%clk 0:01:26]}  Bd5 {[%clk 0:01:56]} 21. Ng5 {[%clk 0:01:25]}  h6 {[%clk 0:01:55]} 22. Ne4 {[%clk 0:01:24]}  Qe6 {[%clk 0:01:49]} 23. c4 {[%clk 0:01:16]}  Bxe5 {[%clk 0:01:15]} 24. fxe5 {[%clk 0:00:55]}  Bxe4 {[%clk 0:01:14]} 25. dxe4 {[%clk 0:00:56]}  Nd4 {[%clk 0:01:11]} 26. Bxd4 {[%clk 0:00:53]}  Rxf1+ {[%clk 0:01:12]} 27. Kxf1 {[%clk 0:00:53]}  Qxc4+ {[%clk 0:01:12]} 28. Kg1 {[%clk 0:00:40]}  Qxd4+ {[%clk 0:01:10]} 29. Qxd4 {[%clk 0:00:40]}  cxd4 {[%clk 0:01:11]} 30. b4 {[%clk 0:00:22]}  c5 {[%clk 0:00:12]} 31. bxc5 {[%clk 0:00:20]}  bxc5 {[%clk 0:00:12]} 32. Kf1 {[%clk 0:00:11]}  c4 {[%clk 0:00:13]} 33. Ke2 {[%clk 0:00:09]}  Kf7 {[%clk 0:00:13]} 34. Rb6 {[%clk 0:00:07]}  Rc8 {[%clk 0:00:12]} 35. Kd2 {[%clk 0:00:04]}  c3+ {[%clk 0:00:12]} 36. Kc1 {[%clk 0:00:04]}  d3 {[%clk 0:00:12]} 37. Rb3 {[%clk 0:00:03]}  Rc4 {[%clk 0:00:12]} 38. Ra3 {[%clk 0:00:02]}  Ke6 {[%clk 0:00:12]} 39. Rb3 {[%clk 0:00:02]}  Kxe5 {[%clk 0:00:12]} 40. Rb5+ {[%clk 0:00:03]}  Kxe4 {[%clk 0:00:13]} 41. Rxa5 {[%clk 0:00:04]}  e5 {[%clk 0:00:13]} 42. Rb5 {[%clk 0:00:04]}  Rxa4 {[%clk 0:00:13]} 43. Rb3 {[%clk 0:00:04]}  Kd4 {[%clk 0:00:13]} 0-1


[Site "https://www.chess.com"]

[Event "Titled Tuesday Blitz June 13 Early 2023"]
[White "Garakov, Mikhael"]
[Black "Di Benedetto, Edoardo"]
[WhiteFideId "4169034"]
[BlackFideId "875740"]
[WhiteElo "2347"]
[BlackElo "2296"]
[Result "1-0"]
[Round "4"]
[TimeControl "180+2"]
[Date "2023.06.13"]
[WhiteClock "0:00:02"]
[BlackClock "0:00:00"]
[Board "73"]

1. e4 {[%clk 0:02:59]}  e6 {[%clk 0:03:00]} 2. d4 {[%clk 0:02:59]}  d5 {[%clk 0:02:59]} 3. Nc3 {[%clk 0:02:56]}  Nf6 {[%clk 0:02:58]} 4. e5 {[%clk 0:02:55]}  Nfd7 {[%clk 0:02:58]} 5. f4 {[%clk 0:02:56]}  c5 {[%clk 0:02:57]} 6. Nf3 {[%clk 0:02:56]}  Nc6 {[%clk 0:02:58]} 7. Be3 {[%clk 0:02:56]}  Rb8 {[%clk 0:02:57]} 8. Qd2 {[%clk 0:02:45]}  Qa5 {[%clk 0:02:55]} 9. Be2 {[%clk 0:02:25]}  b5 {[%clk 0:02:54]} 10. O-O {[%clk 0:02:25]}  b4 {[%clk 0:02:54]} 11. Nd1 {[%clk 0:02:24]}  Ba6 {[%clk 0:02:54]} 12. Bxa6 {[%clk 0:02:12]}  Qxa6 {[%clk 0:02:51]} 13. Nf2 {[%clk 0:02:07]}  cxd4 {[%clk 0:02:47]} 14. Nxd4 {[%clk 0:02:07]}  Bc5 {[%clk 0:02:45]} 15. Rae1 {[%clk 0:01:55]}  Nxd4 {[%clk 0:02:07]} 16. Bxd4 {[%clk 0:01:54]}  O-O {[%clk 0:02:07]} 17. f5 {[%clk 0:01:35]}  exf5 {[%clk 0:02:01]} 18. Bxc5 {[%clk 0:01:33]}  Nxc5 {[%clk 0:01:59]} 19. Qxd5 {[%clk 0:01:34]}  Rfc8 {[%clk 0:01:47]} 20. Nd3 {[%clk 0:00:51]}  Qe6 {[%clk 0:01:27]} 21. Nf4 {[%clk 0:00:40]}  Qb6 {[%clk 0:01:17]} 22. Kh1 {[%clk 0:00:33]}  Ne6 {[%clk 0:00:44]} 23. Nh5 {[%clk 0:00:20]}  Rxc2 {[%clk 0:00:30]} 24. Rxf5 {[%clk 0:00:20]}  Qe3 {[%clk 0:00:20]} 25. Ref1 {[%clk 0:00:19]}  Rd8 {[%clk 0:00:12]} 26. Qb7 {[%clk 0:00:19]}  Rc7 {[%clk 0:00:12]} 27. Qxb4 {[%clk 0:00:18]}  Nd4 {[%clk 0:00:09]} 28. R5f4 {[%clk 0:00:16]}  Rc1 {[%clk 0:00:07]} 29. Qe7 {[%clk 0:00:11]}  Ne6 {[%clk 0:00:01]} 30. Qxf7+ {[%clk 0:00:08]}  Kh8 {[%clk 0:00:01]} 31. Rxc1 {[%clk 0:00:01]}  Qxc1+ {[%clk 0:00:00]} 32. Rf1 {[%clk 0:00:02]} 1-0


[Site "https://www.chess.com"]

[Event "Titled Tuesday Blitz June 13 Early 2023"]
[White "Manukian, Artak"]
[Black "Pulpan, Jakub"]
[WhiteFideId "13301373"]
[BlackFideId "302759"]
[WhiteElo "2130"]
[BlackElo "2484"]
[Result "0-1"]
[Round "4"]
[TimeControl "180+2"]
[Date "2023.06.13"]
[WhiteClock "0:00:08"]
[BlackClock "0:00:58"]
[Board "74"]

1. e4 {[%clk 0:02:52]}  c5 {[%clk 0:02:47]} 2. Nf3 {[%clk 0:02:42]}  Nc6 {[%clk 0:02:45]} 3. c3 {[%clk 0:02:42]}  e6 {[%clk 0:02:42]} 4. d4 {[%clk 0:02:42]}  d5 {[%clk 0:02:43]} 5. e5 {[%clk 0:02:43]}  Qb6 {[%clk 0:02:41]} 6. a3 {[%clk 0:02:42]}  Nge7 {[%clk 0:02:37]} 7. b4 {[%clk 0:02:41]}  cxd4 {[%clk 0:02:37]} 8. cxd4 {[%clk 0:02:42]}  Nf5 {[%clk 0:02:38]} 9. Bb2 {[%clk 0:02:42]}  Bd7 {[%clk 0:02:37]} 10. g4 {[%clk 0:02:38]}  Nfe7 {[%clk 0:02:33]} 11. Nc3 {[%clk 0:02:35]}  h5 {[%clk 0:02:21]} 12. Na4 {[%clk 0:02:33]}  Qd8 {[%clk 0:02:21]} 13. Nc5 {[%clk 0:02:33]}  Bc8 {[%clk 0:02:21]} 14. g5 {[%clk 0:02:28]}  b6 {[%clk 0:02:20]} 15. Nb3 {[%clk 0:02:19]}  Nf5 {[%clk 0:02:17]} 16. h4 {[%clk 0:02:15]}  a5 {[%clk 0:02:12]} 17. b5 {[%clk 0:02:15]}  Nb8 {[%clk 0:02:11]} 18. a4 {[%clk 0:02:13]}  Bb4+ {[%clk 0:02:08]} 19. Nbd2 {[%clk 0:02:09]}  g6 {[%clk 0:01:57]} 20. Bd3 {[%clk 0:02:07]}  O-O {[%clk 0:01:57]} 21. Bxf5 {[%clk 0:02:00]}  exf5 {[%clk 0:01:58]} 22. O-O {[%clk 0:02:00]}  Be6 {[%clk 0:01:56]} 23. Ba3 {[%clk 0:01:57]}  Bxa3 {[%clk 0:01:56]} 24. Rxa3 {[%clk 0:01:54]}  Ra7 {[%clk 0:01:56]} 25. Rc3 {[%clk 0:01:53]}  Rc7 {[%clk 0:01:55]} 26. Qb3 {[%clk 0:01:51]}  Rxc3 {[%clk 0:01:55]} 27. Qxc3 {[%clk 0:01:51]}  Qe7 {[%clk 0:01:43]} 28. Rc1 {[%clk 0:01:50]}  Nd7 {[%clk 0:01:43]} 29. Qc7 {[%clk 0:01:45]}  Qa3 {[%clk 0:01:36]} 30. Qc2 {[%clk 0:01:39]}  Rd8 {[%clk 0:01:31]} 31. Qc7 {[%clk 0:00:53]}  Re8 {[%clk 0:01:29]} 32. Rc6 {[%clk 0:00:53]}  Nf8 {[%clk 0:01:07]} 33. Qxb6 {[%clk 0:00:50]}  Qxa4 {[%clk 0:01:07]} 34. Qb7 {[%clk 0:00:41]}  Qd1+ {[%clk 0:01:04]} 35. Kg2 {[%clk 0:00:38]}  f4 {[%clk 0:01:03]} 36. b6 {[%clk 0:00:35]}  Bf5 {[%clk 0:01:01]} 37. Rc3 {[%clk 0:00:26]}  Be4 {[%clk 0:01:01]} 38. Qc6 {[%clk 0:00:25]}  Qxd2 {[%clk 0:00:58]} 39. Kh2 {[%clk 0:00:08]}  Qxf2+ {[%clk 0:00:58]} 0-1


[Site "https://www.chess.com"]

[Event "Titled Tuesday Blitz June 13 Early 2023"]
[White "Kucuksari, Kaan"]
[Black "Rodchenkov, Sergey D."]
[WhiteFideId "6380166"]
[BlackFideId "4168712"]
[WhiteElo "2364"]
[BlackElo "2277"]
[Result "1-0"]
[Round "4"]
[TimeControl "180+2"]
[Date "2023.06.13"]
[WhiteClock "0:00:03"]
[BlackClock "0:01:37"]
[Board "77"]

1. e4 {[%clk 0:03:00]}  c5 {[%clk 0:03:00]} 2. Nf3 {[%clk 0:03:01]}  d6 {[%clk 0:03:00]} 3. d4 {[%clk 0:03:02]}  cxd4 {[%clk 0:03:01]} 4. Nxd4 {[%clk 0:03:02]}  Nf6 {[%clk 0:03:02]} 5. Nc3 {[%clk 0:03:03]}  a6 {[%clk 0:03:02]} 6. Be3 {[%clk 0:02:58]}  e5 {[%clk 0:03:03]} 7. Nb3 {[%clk 0:02:55]}  Be7 {[%clk 0:03:02]} 8. f3 {[%clk 0:02:54]}  O-O {[%clk 0:03:03]} 9. Qd2 {[%clk 0:02:54]}  Be6 {[%clk 0:03:04]} 10. O-O-O {[%clk 0:02:54]}  Nbd7 {[%clk 0:03:02]} 11. g4 {[%clk 0:02:52]}  b5 {[%clk 0:03:03]} 12. g5 {[%clk 0:02:51]}  Nh5 {[%clk 0:03:04]} 13. Kb1 {[%clk 0:02:49]}  Nb6 {[%clk 0:03:03]} 14. Na5 {[%clk 0:02:41]}  Rc8 {[%clk 0:03:03]} 15. Nd5 {[%clk 0:02:41]}  Nxd5 {[%clk 0:03:00]} 16. exd5 {[%clk 0:02:42]}  Bxd5 {[%clk 0:03:00]} 17. Qxd5 {[%clk 0:02:38]}  Qxa5 {[%clk 0:03:01]} 18. Bd3 {[%clk 0:02:23]}  g6 {[%clk 0:02:51]} 19. Rhg1 {[%clk 0:02:10]}  Nf4 {[%clk 0:02:41]} 20. Bxf4 {[%clk 0:02:09]}  exf4 {[%clk 0:02:41]} 21. Qe4 {[%clk 0:01:46]}  Rfe8 {[%clk 0:02:41]} 22. Qxf4 {[%clk 0:01:45]}  Bf8 {[%clk 0:02:34]} 23. Be4 {[%clk 0:01:33]}  Qb4 {[%clk 0:02:26]} 24. Qd2 {[%clk 0:01:06]}  Qc5 {[%clk 0:02:11]} 25. h4 {[%clk 0:00:53]}  Bg7 {[%clk 0:02:11]} 26. Qxd6 {[%clk 0:00:49]}  Qf2 {[%clk 0:02:10]} 27. Qd2 {[%clk 0:00:26]}  Qc5 {[%clk 0:02:10]} 28. a3 {[%clk 0:00:16]}  a5 {[%clk 0:02:03]} 29. Qxa5 {[%clk 0:00:15]}  Qe5 {[%clk 0:02:03]} 30. c3 {[%clk 0:00:10]}  Qf4 {[%clk 0:01:54]} 31. Qb4 {[%clk 0:00:07]}  Qh2 {[%clk 0:01:43]} 32. Rh1 {[%clk 0:00:06]}  Qf2 {[%clk 0:01:42]} 33. h5 {[%clk 0:00:06]}  Rc4 {[%clk 0:01:41]} 34. Qxb5 {[%clk 0:00:04]}  Rb8 {[%clk 0:01:40]} 35. Qxb8+ {[%clk 0:00:04]}  Bf8 {[%clk 0:01:41]} 36. hxg6 {[%clk 0:00:03]}  hxg6 {[%clk 0:01:37]} 37. Rh8+ {[%clk 0:00:03]} 1-0


[Site "https://www.chess.com"]

[Event "Titled Tuesday Blitz June 13 Early 2023"]
[White "Ginzburg, Yakov"]
[Black "Souleidis, Georgios"]
[WhiteFideId "4157176"]
[BlackFideId "4206827"]
[WhiteElo "2305"]
[BlackElo "2401"]
[Result "1-0"]
[Round "4"]
[TimeControl "180+2"]
[Date "2023.06.13"]
[WhiteClock "0:00:16"]
[BlackClock "0:00:00"]
[Board "79"]

1. d4 {[%clk 0:02:59]}  Nf6 {[%clk 0:02:57]} 2. Nf3 {[%clk 0:02:59]}  g6 {[%clk 0:02:57]} 3. g3 {[%clk 0:02:59]}  Bg7 {[%clk 0:02:57]} 4. Bg2 {[%clk 0:03:00]}  O-O {[%clk 0:02:58]} 5. O-O {[%clk 0:03:00]}  d6 {[%clk 0:02:58]} 6. Re1 {[%clk 0:02:57]}  c6 {[%clk 0:02:49]} 7. e4 {[%clk 0:02:56]}  Qc7 {[%clk 0:02:49]} 8. a4 {[%clk 0:02:55]}  a5 {[%clk 0:02:42]} 9. Nc3 {[%clk 0:02:54]}  e5 {[%clk 0:02:37]} 10. h3 {[%clk 0:02:29]}  Na6 {[%clk 0:02:37]} 11. Be3 {[%clk 0:02:07]}  Re8 {[%clk 0:02:36]} 12. dxe5 {[%clk 0:02:02]}  dxe5 {[%clk 0:02:36]} 13. Qe2 {[%clk 0:01:59]}  Nb4 {[%clk 0:02:34]} 14. Rad1 {[%clk 0:01:58]}  b6 {[%clk 0:02:34]} 15. Qd2 {[%clk 0:01:30]}  Ba6 {[%clk 0:02:32]} 16. Bg5 {[%clk 0:01:14]}  Qe7 {[%clk 0:01:54]} 17. Nb1 {[%clk 0:01:01]}  Rab8 {[%clk 0:01:16]} 18. Na3 {[%clk 0:00:57]}  Qc5 {[%clk 0:01:03]} 19. Qd6 {[%clk 0:00:41]}  Nh5 {[%clk 0:00:30]} 20. c3 {[%clk 0:00:41]}  Qxd6 {[%clk 0:00:24]} 21. Rxd6 {[%clk 0:00:40]}  Nd3 {[%clk 0:00:24]} 22. Rb1 {[%clk 0:00:35]}  Rbc8 {[%clk 0:00:21]} 23. Bf1 {[%clk 0:00:35]}  Nc5 {[%clk 0:00:16]} 24. b4 {[%clk 0:00:35]}  Bxf1 {[%clk 0:00:15]} 25. bxc5 {[%clk 0:00:35]}  Be2 {[%clk 0:00:12]} 26. cxb6 {[%clk 0:00:25]}  Bxf3 {[%clk 0:00:12]} 27. b7 {[%clk 0:00:25]}  Rb8 {[%clk 0:00:13]} 28. Nc4 {[%clk 0:00:25]}  Bxe4 {[%clk 0:00:12]} 29. Nxa5 {[%clk 0:00:25]}  Bxb1 {[%clk 0:00:11]} 30. Rxc6 {[%clk 0:00:22]}  Be4 {[%clk 0:00:10]} 31. Rc7 {[%clk 0:00:22]}  Bf8 {[%clk 0:00:00]} 32. Be3 {[%clk 0:00:16]} 1-0


[Site "https://www.chess.com"]